bitfinex/quotes_ETHUSD_20250319
["timestamp","ask_amount","ask_price","bid_price","bid_amount"]
[1742411443032,9.74247,2052.9,2052.7,5.73647044]
[1742411443248,4.87139,2052.8,2052.5,5.73647044]
[1742411443414,4.87181,2052.7,2052.5,5.73647044]
[1742411443612,4.87186,2052.6,2052.5,5.73647044]
[1742411444166,4.87246,2052.4,2052.2,5.73647044]
[1742411444437,4.87258,2052.3,2052.2,5.73647044]
[1742411444637,4.94396469,2052.3,2052.2,5.73647044]
[1742411445110,0.07138469,2052.3,2052.2,5.73647044]
[1742411445642,4.87224,2052.5,2052.2,5.73647044]
[1742411445841,0.07158224,2052.3,2052.2,5.73647044]
[1742411446025,4.87224,2052.5,2052.2,5.73647044]
[1742411446213,0.7758,2052.9,2052.3,0.8108]
[1742411446413,4.87177,2052.7,2052.4,5.73647044]
[1742411446626,4.8721,2052.6,2052.4,5.73647044]
[1742411446827,4.8721,2052.5,2052.4,5.73647044]
[1742411447708,4.87163,2052.7,2052.4,5.73647044]
[1742411447907,8.357646,2053.2,2052.4,5.73647044]
[1742411447908,3.7807,2053.1,2052.5,5.73647044]
[1742411448158,4.87125,2052.9,2052.5,6.53857044]
[1742411448314,4.87147,2052.8,2052.5,6.53857044]
[1742411448520,4.87082,2053.1,2052.5,6.53857044]
[1742411448843,4.87107,2053.0,2052.7,0.8021]
[1742411449048,4.87121,2052.9,2052.7,0.8021]
[1742411449231,4.87163,2052.7,2052.6,11.78547044]
[1742411450123,4.87163,2052.7,2052.3,5.73647044]
[1742411450124,4.87234,2052.4,2052.3,5.73647044]
[1742411451256,5.67314,2052.4,2052.3,5.73647044]
[1742411451556,4.87234,2052.4,2052.3,5.73647044]
[1742411452328,4.87329,2052.0,2051.9,4.4e-07]
[1742411453259,4.874,2051.7,2051.6,4.4e-07]
[1742411453773,4.87495,2051.3,2051.2,4.4e-07]
[1742411453924,4.87476,2051.4,2051.2,4.4e-07]
[1742411454124,4.87465,2051.5,2051.2,4.4e-07]
[1742411454663,4.87484,2051.4,2051.2,4.4e-07]
[1742411454958,4.87495,2051.3,2051.2,4.4e-07]
[1742411455346,4.87484,2051.4,2051.2,4.4e-07]
[1742411455870,4.87406,2051.7,2051.3,0.7945]
[1742411456065,4.87385,2051.8,2051.3,0.7945]
[1742411456233,4.87409,2051.7,2051.3,0.7945]
[1742411456568,4.87413,2051.7,2051.4,4.4e-07]
[1742411456737,4.87403,2051.7,2051.4,4.4e-07]
[1742411457195,4.87448,2051.5,2051.4,4.4e-07]
[1742411457639,4.87424,2051.6,2051.1,6.04900044]
[1742411457640,4.87519,2051.2,2051.1,6.04900044]
[1742411457845,9.75016,2051.3,2051.1,6.04900044]
[1742411458044,4.87472,2051.4,2051.1,6.73620048]
[1742411458246,4.87376,2051.8,2051.1,6.73620048]
[1742411458476,4.8746,2051.5,2051.2,4.4e-07]
[1742411458976,4.87442,2051.6,2051.2,4.4e-07]
[1742411459176,5.68093,2051.9,2051.2,4.4e-07]
[1742411459386,4.87519,2051.2,2051.0,0.823]
[1742411459753,4.8759,2050.9,2050.8,4.4e-07]
[1742411460177,4.8759,2050.9,2050.0,14.644]
[1742411460178,4.87614,2050.8,2050.4,6.8217]
[1742411460360,4.94037515,2050.9,2050.4,6.8217]
[1742411460568,0.06427198,2050.7,2050.4,6.8217]
[1742411460790,4.87639,2050.7,2050.4,6.8217]
[1742411460950,0.06423051,2050.6,2050.4,7.97008726]
[1742411461464,3.7751,2051.6,2050.4,7.97008726]
[1742411461661,0.06185897,2050.5,2050.4,7.97008726]
[1742411461860,4.8752,2051.2,2050.4,7.97008726]
[1742411462079,0.06145033,2050.5,2050.4,7.97008726]
[1742411462396,4.87603,2050.9,2050.4,1.92008726]
[1742411462594,4.87571,2051.0,2050.5,6.049]
[1742411462777,0.06166654,2050.8,2050.5,6.049]
[1742411463087,0.06160458,2050.7,2050.5,6.049]
[1742411463272,4.87512,2051.3,2050.5,6.049]
[1742411463478,0.05929615,2050.6,2050.5,6.049]
[1742411463685,9.75062,2051.2,2050.5,6.76801314]
[1742411463988,0.05929615,2050.6,2050.5,6.76801314]
[1742411464150,4.87482,2051.4,2050.6,0.8269]
[1742411464585,0.05978954,2051.3,2050.6,0.8269]
[1742411464789,4.87579,2051.0,2050.6,0.8269]
[1742411465094,0.05947605,2050.9,2050.6,0.8269]
[1742411465858,0.05947605,2050.9,2050.5,6.049]
[1742411466059,4.87567,2051.0,2050.5,6.69084314]
[1742411466253,0.05964662,2050.8,2050.5,6.69084314]
[1742411466459,4.87546,2051.1,2050.6,0.7598]
[1742411466659,0.05957612,2050.7,2050.6,0.7598]
[1742411466953,4.93595612,2050.7,2050.3,0.7598]
[1742411467157,4.87658,2050.7,2050.3,1.44068]
[1742411467356,0.05950562,2050.6,2050.4,0.04876619]
[1742411467586,0.05950562,2050.6,2050.3,1.80258348]
[1742411467790,4.87595,2050.9,2050.3,1.80258348]
[1742411467995,0.05943511,2050.5,2050.3,1.80258348]
[1742411468160,9.75207,2050.9,2050.3,1.80258348]
[1742411468161,4.87631,2050.8,2050.3,1.80258348]
[1742411468388,9.75264,2050.8,2050.3,1.80258348]
[1742411468561,0.05957612,2050.7,2050.3,1.12170348]
[1742411468896,4.87548,2051.1,2050.3,1.12170348]
[1742411469205,0.0593538,2050.6,2050.5,1.3098]
[1742411469359,4.87481,2051.4,2050.5,1.3098]
[1742411469691,4.87473,2051.4,2050.5,0.7598]
[1742411469892,4.93520864,2051.3,2050.6,0.55]
[1742411470070,4.93520864,2051.3,2050.7,6.049]
[1742411470273,0.06008864,2051.3,2050.9,1.3098]
[1742411470467,0.568093,2051.8,2050.9,1.3098]
[1742411470468,4.87401,2051.7,2050.9,1.3098]
[1742411470794,0.0598988,2051.2,2050.9,1.3098]
[1742411470956,0.7693,2052.0,2050.9,1.3098]
[1742411471159,4.8741,2051.7,2050.9,1.3098]
[1742411471371,4.87378,2051.8,2050.9,1.3098]
[1742411471569,0.05580671,2051.6,2050.9,0.55]
[1742411471860,0.05573627,2051.5,2051.1,1.326]
[1742411472080,4.87282,2052.2,2051.4,1.326]
[1742411472295,0.8194,2052.6,2051.6,0.55]
[1742411472499,0.8194,2052.9,2051.7,6.825]
[1742411472705,4.87221,2052.5,2051.8,0.6825]
[1742411472864,4.87251,2052.4,2051.8,0.6825]
[1742411473196,4.8725,2052.4,2051.8,1.05295583]
[1742411473367,4.87269,2052.3,2051.8,0.37045583]
[1742411473563,4.87277,2052.3,2051.7,6.825]
[1742411473903,0.7692,2052.7,2051.7,6.825]
[1742411474203,4.87269,2052.3,2051.7,6.825]
[1742411474763,0.05335928,2052.2,2051.8,0.55]
[1742411474979,0.05335928,2052.2,2052.0,0.55]
[1742411475164,4.8722,2052.5,2051.9,0.7375]
[1742411475364,0.05098208,2052.1,2051.8,0.36060192]
[1742411475596,4.87239,2052.4,2051.7,6.825]
[1742411475800,0.05119827,2052.0,2051.8,0.55]
[1742411476013,0.7692,2052.7,2051.8,0.55]
[1742411476359,0.05151019,2052.6,2051.8,0.9074516]
[1742411476573,0.05151019,2052.6,2052.0,0.55]
[1742411476769,0.05151019,2052.6,2052.2,0.55]
[1742411477003,3.85927306,2053.6,2052.5,0.769]
[1742411477004,0.8082,2053.4,2052.5,0.769]
[1742411477210,4.87078,2053.1,2052.5,0.769]
[1742411477577,4.87121,2052.9,2052.5,0.769]
[1742411477904,4.87121,2052.9,2052.3,6.047]
[1742411477905,6.71503575,2052.8,2052.3,6.047]
[1742411478089,4.87163,2052.7,2052.0,6.046]
[1742411478273,9.78952079,2052.7,2052.0,6.046]
[1742411478602,0.04607079,2052.7,2051.9,0.787]
[1742411478901,9.74601,2052.2,2051.7,6.046]
[1742411479063,4.87331,2052.0,2051.7,6.046]
[1742411479263,4.92260934,2052.1,2051.7,6.046]
[1742411479497,0.04954287,2051.9,2051.7,6.046]
[1742411479793,4.8734,2052.0,2051.7,6.046]
[1742411479996,0.04621671,2051.8,2051.7,6.046]
[1742411480211,5.926461,2052.2,2051.7,6.046]
[1742411480687,0.05343968,2052.1,2051.8,0.7544]
[1742411481012,4.87325,2052.1,2051.7,6.046]
[1742411481161,0.04627797,2052.0,2051.5,1.17221565]
[1742411481504,4.87261,2052.3,2051.6,6.045]
[1742411481795,0.0492784,2052.0,2051.6,6.76672157]
[1742411482014,4.87282,2052.2,2051.6,6.045]
[1742411482501,4.92246947,2052.1,2051.6,6.045]
[1742411482866,0.04937947,2052.1,2051.6,6.045]
[1742411483062,4.87257,2052.4,2051.6,6.045]
[1742411483268,4.87186,2052.6,2051.6,6.045]
[1742411483494,9.74554,2052.3,2051.6,6.045]
[1742411483795,3.0,2052.4,2051.6,6.045]
[1742411484159,4.87192,2052.6,2051.7,0.55]
[1742411484363,7.87199,2052.6,2051.8,0.767]
[1742411484601,4.87221,2052.5,2051.8,0.767]
[1742411484803,3.0,2052.5,2051.8,1.5032]
[1742411485001,0.97885435,2052.8,2051.9,0.55]
[1742411485205,5.65951,2053.0,2051.9,0.55]
[1742411485504,9.74257,2052.9,2052.0,0.8055]
[1742411485698,0.7885,2053.0,2052.2,0.55]
[1742411485864,4.87101,2053.0,2052.2,0.55]
[1742411486307,0.7712,2053.3,2052.4,0.55]
[1742411486470,5.64153,2053.3,2052.4,0.55]
[1742411486667,0.564153,2053.2,2052.4,0.55]
[1742411486977,4.87081,2053.1,2052.3,0.7748]
[1742411487190,9.74169,2053.1,2052.3,0.7748]
[1742411487391,4.87104,2053.0,2052.3,0.7748]
[1742411487619,4.87234,2052.4,2052.3,6.043]
[1742411487826,0.487234,2052.4,2052.3,6.043]
[1742411488124,4.87234,2052.4,2052.3,6.043]
[1742411488324,4.87187,2052.6,2052.3,6.043]
[1742411488631,3.0,2052.6,2052.3,6.043]
[1742411488779,3.0,2052.6,2052.1,6.043]
[1742411488984,5.68229,2052.8,2052.1,6.043]
[1742411488985,4.87173,2052.7,2052.1,6.043]
[1742411489179,4.87204,2052.6,2052.1,6.043]
[1742411489379,4.87219,2052.5,2052.1,6.043]
[1742411489695,4.87267,2052.3,2051.9,6.042]
[1742411489903,4.87296,2052.2,2051.9,6.042]
[1742411490223,4.87235,2052.4,2051.9,6.042]
[1742411490421,4.87259,2052.3,2051.9,6.042]
[1742411490721,4.60291858,2052.8,2051.9,6.042]
[1742411490722,4.87216,2052.5,2051.9,6.042]
[1742411491083,7.87167,2052.7,2051.9,6.042]
[1742411491328,8.88323558,2052.5,2051.9,6.042]
[1742411491523,4.87317,2052.1,2051.9,6.042]
[1742411491827,4.87329,2052.0,2051.9,6.042]
[1742411492029,4.87329,2052.0,2051.7,0.7514]
[1742411492209,4.87389,2051.8,2051.2,0.8247]
[1742411492410,0.974646,2051.9,2051.4,0.36133374]
[1742411492411,3.0,2051.9,2051.4,0.36133374]
[1742411492586,3.0,2051.9,2051.3,6.041]
[1742411493123,4.87282,2052.2,2051.4,0.55]
[1742411493333,4.87286,2052.2,2051.5,0.7749]
[1742411493515,4.87286,2052.2,2051.6,0.55]
[1742411493891,4.87342,2052.0,2051.6,0.55]
[1742411494089,4.87354,2051.9,2051.5,0.7749]
[1742411494290,4.87342,2052.0,2051.5,0.7749]
[1742411494528,7.87342,2052.0,2051.5,0.7749]
[1742411494823,4.87354,2051.9,2051.5,0.7749]
[1742411495201,4.87377,2051.8,2051.5,0.7749]
[1742411495401,4.87441,2051.6,2051.2,0.7913]
[1742411495588,4.87465,2051.5,2051.2,0.7913]
[1742411495790,4.87481,2051.4,2050.9,1.77793815]
[1742411495990,6.438377,2051.8,2050.9,0.7913]
[1742411495991,4.87507,2051.3,2050.9,0.7913]
[1742411496191,4.87529,2051.2,2050.8,6.041]
[1742411496393,3.8323,2051.2,2050.6,0.7944]
[1742411496633,4.87554,2051.1,2050.6,1.16486528]
[1742411496928,4.87554,2051.1,2050.6,0.7944]
[1742411497301,8.14835667,2051.0,2050.1,0.37156372]
[1742411497542,3.8323,2051.2,2050.1,0.37156372]
[1742411497543,7.87757,2050.2,2050.1,0.37156372]
[1742411497707,8.66407,2050.2,2050.1,3.72e-06]
[1742411497908,4.87923,2049.5,2049.4,0.1216307]
[1742411498250,11.15173667,2049.5,2049.4,0.1216307]
[1742411498416,12.78474825,2049.5,2049.4,0.1216307]
[1742411498616,14.49004522,2049.5,2049.4,0.1216307]
[1742411499032,3.0,2049.5,2049.4,0.1216307]
[1742411499742,3.0,2049.7,2049.4,0.1216307]
[1742411499946,4.87913,2049.6,2049.4,0.1216307]
[1742411500253,7.87923,2049.5,2049.4,0.1216307]
[1742411500949,11.86061958,2049.5,2049.4,0.1216307]
[1742411501132,15.24767292,2049.5,2049.4,0.1216307]
[1742411501308,15.24767292,2049.5,2049.4,7e-07]
[1742411501648,4.88144,2048.6,2048.2,0.7504]
[1742411501947,4.88179,2048.5,2047.4,0.7956]
[1742411502132,4.88179,2048.5,2047.5,6.043]
[1742411502133,4.88201,2048.4,2047.5,6.043]
[1742411502360,4.88212,2048.3,2047.6,0.68386]
[1742411502561,4.88179,2048.5,2047.6,0.68386]
[1742411502959,7.88118,2048.7,2047.6,0.68386]
[1742411503178,7.88118,2048.7,2047.6,1.0545169]
[1742411503179,4.88177,2048.5,2047.6,1.0545169]
[1742411503337,4.88215,2048.3,2047.6,0.68386]
[1742411503537,4.93117709,2048.2,2047.6,0.68386]
[1742411503758,4.88262,2048.1,2047.4,0.7956]
[1742411503964,4.88225,2048.3,2047.4,0.7956]
[1742411504172,3.0,2048.2,2047.4,0.7956]
[1742411504538,3.805,2048.5,2047.5,0.55]
[1742411504744,4.883,2048.0,2047.1,0.53924351]
[1742411504941,9.76546,2048.1,2047.2,0.83712131]
[1742411505178,4.88233,2048.2,2047.3,0.55]
[1742411505482,3.0,2048.1,2047.3,0.55]
[1742411506012,4.8827,2048.1,2047.3,0.55]
[1742411506182,7.88205,2048.4,2047.5,0.55]
[1742411506479,1.19108396,2048.3,2047.6,0.8048]
[1742411506680,4.8827,2048.1,2047.6,0.8048]
[1742411506858,4.88185,2048.4,2047.6,0.8048]
[1742411507058,4.88247,2048.2,2047.6,0.8048]
[1742411507261,4.88209,2048.3,2047.6,0.8048]
[1742411507468,4.88245,2048.2,2047.6,0.8048]
[1742411507663,4.88258,2048.1,2047.6,0.8048]
[1742411508052,4.88204,2048.4,2047.7,0.55]
[1742411508256,0.805,2048.5,2047.7,0.55]
[1742411508564,4.88221,2048.3,2047.6,0.8048]
[1742411509074,4.882,2048.4,2047.6,0.8048]
[1742411509282,10.56859,2048.5,2047.7,0.93048]
[1742411509475,5.68674,2048.5,2047.7,0.93048]
[1742411509681,4.88185,2048.4,2047.7,0.55]
[1742411509885,4.88228,2048.3,2047.7,0.55]
[1742411510260,0.805,2048.5,2047.7,0.96669991]
[1742411510458,4.88243,2048.2,2047.6,0.8048]
[1742411510689,9.76491,2048.2,2047.7,3.0]
[1742411510878,9.76491,2048.2,2047.2,0.7525]
[1742411510879,4.88291,2048.0,2047.2,0.7525]
[1742411511072,4.88305,2047.9,2047.2,6.7985]
[1742411511283,4.8839,2047.6,2047.2,0.7525]
[1742411511685,4.8839,2047.6,2047.1,0.1786331]
[1742411511887,4.88423,2047.5,2047.1,0.1786331]
[1742411512198,5.37752471,2047.5,2047.1,0.1786331]
[1742411512408,4.88365,2047.7,2047.1,0.1786331]
[1742411512706,4.88323,2047.9,2047.2,0.55]
[1742411512904,4.88321,2047.9,2047.2,0.55]
[1742411513073,1.771691,2048.2,2047.2,0.55]
[1742411513074,1.771691,2048.2,2047.3,0.8287]
[1742411513272,4.88308,2047.9,2047.3,0.8287]
[1742411513476,0.488308,2047.9,2047.4,0.55]
[1742411513676,0.488308,2047.9,2047.3,0.8287]
[1742411513981,4.88318,2047.9,2047.4,0.55]
[1742411514177,4.88293,2048.0,2047.4,0.55]
[1742411514609,4.88293,2048.0,2047.3,0.8287]
[1742411514783,1.771691,2048.2,2047.4,6.596]
[1742411515111,4.88277,2048.1,2047.6,0.55]
[1742411515410,4.88315,2047.9,2047.3,0.55]
[1742411515612,4.88336,2047.8,2047.3,0.55]
[1742411515816,4.88419,2047.5,2047.1,0.1786331]
[1742411516312,4.88426,2047.4,2047.1,0.1786331]
[1742411516509,4.88381,2047.6,2047.1,0.1786331]
[1742411516808,4.88362,2047.7,2047.2,0.55]
[1742411517018,4.88305,2047.9,2047.2,0.55]
[1742411517216,5.71498,2048.0,2047.2,0.55]
[1742411517388,5.71498,2048.0,2047.4,0.55]
[1742411517915,4.88342,2047.8,2047.3,6.046]
[1742411518099,4.88281,2048.0,2047.4,0.55]
[1742411518414,5.859348,2048.0,2047.4,0.55]
[1742411518578,5.859348,2048.0,2047.3,6.046]
[1742411518579,4.88305,2047.9,2047.3,6.046]
[1742411518779,4.88362,2047.7,2047.3,6.046]
[1742411518981,4.88347,2047.8,2047.3,6.046]
[1742411519200,4.88372,2047.7,2047.2,0.55]
[1742411519403,0.976719,2047.6,2047.1,3.1786331]
[1742411519923,4.88354,2047.7,2047.1,3.1786331]
[1742411520120,4.88305,2047.9,2047.2,0.55]
[1742411520325,4.8834,2047.8,2047.2,0.55]
[1742411520622,4.88339,2047.8,2047.4,0.55]
[1742411520786,4.88339,2047.8,2047.3,0.7634]
[1742411521001,9.76729,2047.7,2047.3,0.7634]
[1742411521200,4.88387,2047.6,2047.3,0.7634]
[1742411521383,4.88355,2047.7,2047.3,0.7634]
[1742411521583,0.5859928,2047.8,2047.3,0.7634]
[1742411521813,4.88395,2047.6,2047.3,0.7634]
[1742411522017,4.88353,2047.7,2047.3,0.7634]
[1742411522320,5.43091228,2047.6,2047.1,7.0223331]
[1742411522477,0.54695228,2047.6,2047.1,7.0223331]
[1742411522680,4.88319,2047.9,2047.2,0.55]
[1742411522881,3.8227,2048.3,2047.2,0.55]
[1742411523081,4.88233,2048.2,2047.4,0.55]
[1742411523280,4.88322,2047.9,2047.4,0.55]
[1742411523514,4.88368,2047.7,2047.3,0.7987]
[1742411523722,0.488368,2047.6,2047.3,0.7987]
[1742411523895,5.372328,2047.6,2047.3,0.7987]
[1742411524093,4.88459,2047.3,2047.1,0.1786331]
[1742411524293,4.88301,2048.0,2047.2,0.55]
[1742411524493,0.04871709,2047.9,2047.2,0.55]
[1742411524739,4.88344,2047.8,2047.2,0.55]
[1742411524943,4.88364,2047.7,2047.2,0.55]
[1742411525100,0.81,2048.1,2047.2,4.30723331]
[1742411525296,4.88238,2048.2,2047.3,0.7735]
[1742411525537,4.88305,2047.9,2047.3,0.7735]
[1742411525742,4.88292,2048.0,2047.3,0.7735]
[1742411525928,4.88261,2048.1,2047.4,0.55]
[1742411526124,4.88226,2048.3,2047.4,1.05807333]
[1742411526313,4.8829,2048.0,2047.4,1.05807333]
[1742411526516,4.88305,2047.9,2047.3,0.7735]
[1742411526712,4.88293,2048.0,2047.3,0.7735]
[1742411527014,4.88347,2047.8,2047.3,0.7735]
[1742411527335,4.88378,2047.6,2047.3,0.7735]
[1742411527539,4.88233,2048.2,2047.3,0.7735]
[1742411527737,4.88287,2048.0,2047.3,0.7735]
[1742411528039,5.859232,2048.1,2047.3,0.7735]
[1742411528040,4.88348,2047.8,2047.3,0.7735]
[1742411528209,4.88367,2047.7,2047.3,0.7735]
[1742411528411,4.88424,2047.4,2047.1,0.1786331]
[1742411528711,4.88381,2047.6,2047.1,0.1786331]
[1742411528912,5.66398,2047.8,2047.1,0.1786331]
[1742411529113,4.88281,2048.0,2047.2,0.55]
[1742411529437,4.88325,2047.9,2047.1,0.1786331]
[1742411529638,0.04871709,2048.0,2047.3,6.044]
[1742411529805,4.88362,2047.7,2047.3,6.044]
[1742411530422,4.884,2047.6,2047.1,0.1786331]
[1742411530623,0.04871709,2047.5,2047.1,0.1786331]
[1742411530826,4.88398,2047.6,2047.1,3.7286331]
[1742411531045,4.98093158,2048.1,2047.1,3.7286331]
[1742411531239,4.88389,2047.6,2047.1,3.7286331]
[1742411531434,4.88373,2047.7,2047.1,3.7286331]
[1742411531637,4.88377,2047.6,2047.1,3.7286331]
[1742411531944,4.88317,2047.9,2047.2,0.55]
[1742411532320,4.88281,2048.0,2047.2,0.55]
[1742411532519,4.88436,2047.4,2047.1,0.1786331]
[1742411532754,4.02419728,2048.0,2047.1,0.1786331]
[1742411532952,5.46094393,2048.0,2047.2,0.55]
[1742411533154,4.88309,2047.9,2047.2,0.55]
[1742411533654,5.46094393,2048.0,2047.2,0.55]
[1742411533655,4.88279,2048.1,2047.4,0.55]
[1742411533854,5.69456,2048.4,2047.4,6.043]
[1742411533855,8.91834958,2048.4,2047.4,6.043]
[1742411534054,4.8832,2047.9,2047.4,6.043]
[1742411534355,5.37137,2047.9,2047.3,0.7876]
[1742411534653,4.8839,2047.6,2047.3,0.7876]
[1742411534822,4.88401,2047.5,2047.3,0.7876]
[1742411535018,4.88401,2047.5,2047.1,0.1786331]
[1742411535324,6.1994,2047.9,2047.1,0.1786331]
[1742411535325,9.76866,2047.4,2047.1,0.1786331]
[1742411535522,4.88458,2047.3,2047.1,0.1786331]
[1742411535721,4.88472,2047.2,2047.1,0.1786331]
[1742411535939,5.861116,2047.4,2047.1,0.1786331]
[1742411536122,4.884,2047.5,2047.1,0.1786331]
[1742411536324,4.8835,2047.8,2047.3,0.8149]
[1742411536518,4.88362,2047.7,2047.3,0.8149]
[1742411536824,4.88233,2048.2,2047.4,0.55]
[1742411537156,4.88329,2047.8,2047.3,3.8149]
[1742411537321,0.488329,2047.8,2047.3,3.8149]
[1742411537661,4.88305,2047.9,2047.3,3.8149]
[1742411537825,0.8294,2048.3,2047.4,0.55]
[1742411538169,4.77568398,2048.2,2047.3,3.8149]
[1742411538454,4.88363,2047.7,2047.3,3.8149]
[1742411538759,4.88411,2047.5,2047.1,0.1786331]
[1742411538944,4.88472,2047.2,2047.1,0.1786331]
[1742411539146,4.93343709,2047.2,2047.1,0.1786331]
[1742411539360,4.88472,2047.2,2047.1,0.1786331]
[1742411540234,4.93343709,2047.2,2047.1,3.1e-06]
[1742411540575,7.59647435,2047.2,2047.1,3.1e-06]
[1742411540721,12.65706496,2047.2,2047.1,3.1e-06]
[1742411541132,4.88686,2046.3,2046.2,0.0751093]
[1742411541761,4.88663,2046.4,2046.2,0.0751093]
[1742411541961,4.88686,2046.3,2046.2,0.0751093]
[1742411542167,6.685909,2046.3,2046.2,0.0751093]
[1742411542861,6.73462609,2046.3,2046.2,0.0751093]
[1742411544680,6.73462609,2046.3,2046.2,9.3e-06]
[1742411544887,4.88893,2045.5,2045.3,0.1216307]
[1742411545183,4.88901,2045.4,2045.3,0.1216307]
[1742411545536,10.266833,2045.5,2045.3,0.1216307]
[1742411545846,4.88901,2045.4,2045.3,0.1216307]
[1742411546047,4.93772709,2045.4,2045.3,0.1216307]
[1742411546377,5.72292709,2045.4,2045.3,0.1216307]
[1742411546575,7.10666397,2045.4,2045.3,0.1216307]
[1742411547035,4.88893,2045.5,2045.3,0.1216307]
[1742411547235,4.88901,2045.4,2045.3,0.1216307]
[1742411548538,5.6404967,2045.4,2045.3,0.1216307]
[1742411548739,4.88901,2045.4,2045.3,0.1216307]
[1742411549374,0.7989,2045.7,2045.3,0.1216307]
[1742411549536,4.88854,2045.6,2045.3,0.1216307]
[1742411549742,0.7989,2045.7,2045.3,0.1216307]
[1742411549939,4.88865,2045.6,2045.3,0.1216307]
[1742411550138,4.88889,2045.5,2045.3,0.1216307]
[1742411550346,4.88865,2045.6,2045.3,0.1216307]
[1742411550555,4.888,2045.9,2045.3,0.1216307]
[1742411550768,4.88773,2046.0,2045.4,0.79]
[1742411550976,4.88735,2046.1,2045.4,0.79]
[1742411551177,4.88821,2045.8,2045.4,0.79]
[1742411551340,4.88891,2045.5,2045.3,0.1216307]
[1742411551543,4.88841,2045.7,2045.3,0.1216307]
[1742411551771,4.88881,2045.5,2045.3,0.1216307]
[1742411552650,4.88901,2045.4,2045.3,0.1216307]
[1742411552847,9.77692,2045.7,2045.3,0.1216307]
[1742411553175,4.88859,2045.6,2045.3,0.1216307]
[1742411553380,4.93749709,2045.5,2045.3,0.1216307]
[1742411553556,0.977703,2045.6,2045.3,0.1216307]
[1742411553750,4.88806,2045.8,2045.3,0.1216307]
[1742411554295,4.88785,2045.9,2045.4,0.7566]
[1742411554577,4.88901,2045.4,2045.3,0.1216307]
[1742411554778,9.77773,2045.5,2045.3,0.1216307]
[1742411554949,4.88901,2045.4,2045.3,0.1216307]
[1742411555145,5.866583,2045.5,2045.3,0.1216307]
[1742411555450,8.02800192,2045.4,2045.3,0.1216307]
[1742411556447,9.53507153,2045.4,2045.3,0.1216307]
[1742411556771,4.88901,2045.4,2045.3,0.1216307]
[1742411556953,10.93181,2045.5,2045.3,0.1216307]
[1742411557144,8.07671901,2045.4,2045.3,0.1216307]
[1742411557364,1.9008529,2045.4,2045.3,0.1216307]
[1742411557569,8.07671901,2045.4,2045.3,0.1216307]
[1742411557869,4.88901,2045.4,2045.3,0.1216307]
[1742411558064,4.88846,2045.7,2045.3,0.1216307]
[1742411558261,4.88842,2045.7,2045.3,0.1216307]
[1742411558497,4.93696709,2045.8,2045.3,0.1216307]
[1742411558700,4.889,2045.5,2045.3,0.1216307]
[1742411558914,4.88901,2045.4,2045.3,0.1216307]
[1742411559398,5.6404967,2045.4,2045.3,0.1216307]
[1742411559563,9.4409044,2045.4,2045.3,0.1216307]
[1742411559764,13.02501,2045.4,2045.3,7e-07]
[1742411559988,4.89128,2044.5,2044.2,0.8143]
[1742411560302,4.89126,2044.5,2044.2,0.8143]
[1742411560501,4.89045,2044.8,2044.2,0.8143]
[1742411560799,4.8913,2044.5,2044.2,0.8143]
[1742411560998,4.89144,2044.4,2044.2,0.8143]
[1742411561207,4.89091,2044.7,2044.2,0.8143]
[1742411561496,8.02945192,2044.8,2044.2,0.8143]
[1742411561703,4.89199,2044.2,2043.9,0.7532]
[1742411562007,4.89143,2044.4,2043.9,0.7532]
[1742411562221,4.89095,2044.6,2044.0,0.55]
[1742411562620,4.89063,2044.8,2044.1,0.7701]
[1742411562621,4.89058,2044.8,2044.1,0.7701]
[1742411563126,4.8906,2044.8,2044.2,0.55]
[1742411563616,3.13899192,2044.7,2044.1,0.7701]
[1742411563818,4.89108,2044.6,2044.1,0.7701]
[1742411563992,4.89141,2044.4,2044.1,0.7701]
[1742411564185,8.03064192,2044.3,2044.1,0.7701]
[1742411564385,4.89107,2044.6,2044.1,0.7701]
[1742411564625,4.89078,2044.7,2044.1,0.7701]
[1742411564919,9.78074,2044.9,2044.2,0.55]
[1742411565119,9.78011,2045.0,2044.3,0.7935]
[1742411565298,8.02857192,2045.2,2044.4,0.55]
[1742411565623,20.97604419,2045.4,2044.4,0.55]
[1742411565624,4.88917,2045.4,2044.6,0.55]
[1742411565790,4.88952,2045.2,2044.7,0.7935]
[1742411565987,8.02834192,2045.3,2044.7,0.7935]
[1742411566302,4.88878,2045.5,2044.8,0.55]
[1742411566617,4.88887,2045.5,2045.0,0.55]
[1742411567018,4.88946,2045.3,2044.9,0.753]
[1742411567326,4.88961,2045.2,2044.9,0.753]
[1742411567520,4.88973,2045.1,2044.9,0.753]
[1742411567723,4.88961,2045.2,2044.9,0.753]
[1742411568030,4.88914,2045.4,2044.9,0.753]
[1742411568202,4.88886,2045.5,2045.0,0.55]
[1742411568593,4.8888,2045.5,2045.0,0.55]
[1742411568822,4.88904,2045.4,2045.0,0.55]
[1742411569122,4.88904,2045.4,2044.9,0.753]
[1742411569123,4.88938,2045.3,2044.9,0.753]
[1742411569334,4.88962,2045.2,2044.9,0.753]
[1742411569542,4.88983,2045.1,2044.9,0.753]
[1742411569719,4.89066,2044.8,2044.6,0.7612]
[1742411569893,4.89021,2044.9,2044.6,0.7612]
[1742411570091,6.042,2045.3,2044.6,0.7612]
[1742411570298,4.88983,2045.1,2044.6,0.7612]
[1742411570518,4.88991,2045.1,2044.6,0.7612]
[1742411570693,5.7134136,2045.2,2044.6,0.7612]
[1742411570905,6.042,2045.3,2044.6,0.7612]
[1742411571231,4.88913,2045.4,2044.7,1.3294]
[1742411571409,4.88913,2045.4,2044.7,4.3294]